{"text_format":"3","workbook":"xlsx","n_sheets":5,"sheets":["Fattura","Clienti","Fatture - Principale","Dettagli fattura","Info sul registro fatture"],"not_rendered":{"defined_names":8},"read":"whole","date_system":"1900"}

{"sheet":"Fattura","index":0,"n_rows":39,"n_cols":7,"rows_kept":39,"merged":[[1,1,1,2],[1,3,1,4],[1,5,1,6],[2,1,2,2],[2,3,2,4],[2,5,2,6],[3,3,3,4],[4,3,4,4],[5,3,5,4],[37,1,37,4],[38,1,38,4]]}
[null,"Nome società"]
[null,"Via e numero civico",null,"T: Numero di telefono",null,"Posta elettronica"]
[null,"CAP città (provincia)",null,"F: Numero di fax",null,"Sito Web"]
[null,"Fatturare a:",{"$f":"IFERROR(VLOOKUP(VLOOKUP(rngFattura,FatturePrincipale[],2,FALSE),ElencoClienti[],3,TRUE),\"\")","v":"Contoso, Ltd"},{"$f":"\"Telefono: \"&IFERROR(VLOOKUP(VLOOKUP(rngFattura,FatturePrincipale[],2,FALSE),ElencoClienti[],9,FALSE),\"\")","v":"Telefono: 432-555-0189"},null,"N. fattura:","3-456-2"]
[null,"Indirizzo:",{"$f":"IFERROR(IF((VLOOKUP(VLOOKUP(rngFattura,FatturePrincipale[],2,FALSE),ElencoClienti[],5,FALSE))=\"\",\"\",(VLOOKUP(VLOOKUP(rngFattura,FatturePrincipale[],2,FALSE),ElencoClienti[],5,FALSE))),\"\")","v":"Via Torino 21"},{"$f":"\"Fax:         \"&IFERROR(VLOOKUP(VLOOKUP(rngFattura,FatturePrincipale[],2,FALSE),ElencoClienti[],11,FALSE),\"\")","v":"Fax:         432-555-0123"},null,"Data fattura:",{"$f":"IFERROR(IF(VLOOKUP(rngFattura,FatturePrincipale[],3,FALSE)=\"\",\"\",VLOOKUP(rngFattura,FatturePrincipale[],3,FALSE)),\"\")","v":"2019-08-11"}]
[null,null,{"$f":"IFERROR(VLOOKUP(VLOOKUP(rngFattura,FatturePrincipale[],2,FALSE),ElencoClienti[],6,FALSE)&\", \"& VLOOKUP(VLOOKUP(G4,FatturePrincipale[],2,FALSE),ElencoClienti[],7,FALSE)&\" \"&VLOOKUP(VLOOKUP(G4,FatturePrincipale[],2,FALSE),ElencoClienti[],8,FALSE),\"\")","v":"Barletta, BA 098765"},{"$f":"\"Posta elettronica: \"&IFERROR(VLOOKUP(VLOOKUP(rngFattura,FatturePrincipale[],2,FALSE),ElencoClienti[],10,FALSE),\"\")","v":"Posta elettronica: prova@example.com"}]
[null,{"$f":"\"Oggetto fattura: \"&IFERROR(VLOOKUP(rngFattura,FatturePrincipale[],4),\"\")","v":"Oggetto fattura: Progetto 2"}]
[null,"N. articolo","Descrizione","Q.tà","Prezzo unitario","Sconto","Prezzo"]
[null,{"$f":"IFERROR(INDEX(DettagliFattura[],SMALL(IF(DettagliFattura[N. fattura]=rngFattura,ROW(DettagliFattura[])-ROW(DettagliFattura[#Headers])), ROW(1:1)), MATCH($B$8, DettagliFattura[#Headers], 0)),\"\")","v":"Z4567"},{"$f":"IFERROR(INDEX(DettagliFattura[],SMALL(IF(DettagliFattura[N. fattura]=rngFattura,ROW(DettagliFattura[])-ROW(DettagliFattura[#Headers])), ROW(1:1)), MATCH($C$8, DettagliFattura[#Headers], 0)),\"\")","v":"Fattura 3-456-2 Dati 1"},{"$f":"IFERROR(INDEX(DettagliFattura[],SMALL(IF(DettagliFattura[N. fattura]=rngFattura,ROW(DettagliFattura[])-ROW(DettagliFattura[#Headers])), ROW(1:1)), MATCH($D$8, DettagliFattura[#Headers], 0)),\"\")","v":39},{"$f":"IFERROR(INDEX(DettagliFattura[],SMALL(IF(DettagliFattura[N. fattura]=rngFattura,ROW(DettagliFattura[])-ROW(DettagliFattura[#Headers])), ROW(1:1)), MATCH($E$8, DettagliFattura[#Headers], 0)),\"\")","v":{"v":5,"d":"€ 5.00"}},{"$f":"IFERROR(INDEX(DettagliFattura[],SMALL(IF(DettagliFattura[N. fattura]=rngFattura,ROW(DettagliFattura[])-ROW(DettagliFattura[#Headers])), ROW(1:1)), MATCH($F$8, DettagliFattura[#Headers], 0)),\"\")","v":0},{"$f":"IFERROR((D9*E9)-F9,\"\")","v":{"v":195,"d":"€ 195.00"}}]
[null,{"$f":"IFERROR(INDEX(DettagliFattura[],SMALL(IF(DettagliFattura[N. fattura]=rngFattura,ROW(DettagliFattura[])-ROW(DettagliFattura[#Headers])), ROW(2:2)), MATCH($B$8, DettagliFattura[#Headers], 0)),\"\")","v":"Z4568"},{"$f":"IFERROR(INDEX(DettagliFattura[],SMALL(IF(DettagliFattura[N. fattura]=rngFattura,ROW(DettagliFattura[])-ROW(DettagliFattura[#Headers])), ROW(2:2)), MATCH($C$8, DettagliFattura[#Headers], 0)),\"\")","v":"Fattura 3-456-2 Dati 2"},{"$f":"IFERROR(INDEX(DettagliFattura[],SMALL(IF(DettagliFattura[N. fattura]=rngFattura,ROW(DettagliFattura[])-ROW(DettagliFattura[#Headers])), ROW(2:2)), MATCH($D$8, DettagliFattura[#Headers], 0)),\"\")","v":40},{"$f":"IFERROR(INDEX(DettagliFattura[],SMALL(IF(DettagliFattura[N. fattura]=rngFattura,ROW(DettagliFattura[])-ROW(DettagliFattura[#Headers])), ROW(2:2)), MATCH($E$8, DettagliFattura[#Headers], 0)),\"\")","v":{"v":4,"d":"€ 4.00"}},{"$f":"IFERROR(INDEX(DettagliFattura[],SMALL(IF(DettagliFattura[N. fattura]=rngFattura,ROW(DettagliFattura[])-ROW(DettagliFattura[#Headers])), ROW(2:2)), MATCH($F$8, DettagliFattura[#Headers], 0)),\"\")","v":{"v":5,"d":"€ 5.00"}},{"v":155,"d":"€ 155.00"}]
[null,{"$f":"IFERROR(INDEX(DettagliFattura[],SMALL(IF(DettagliFattura[N. fattura]=rngFattura,ROW(DettagliFattura[])-ROW(DettagliFattura[#Headers])), ROW(3:3)), MATCH($B$8, DettagliFattura[#Headers], 0)),\"\")","v":"Z4569"},{"$f":"IFERROR(INDEX(DettagliFattura[],SMALL(IF(DettagliFattura[N. fattura]=rngFattura,ROW(DettagliFattura[])-ROW(DettagliFattura[#Headers])), ROW(3:3)), MATCH($C$8, DettagliFattura[#Headers], 0)),\"\")","v":"Fattura 3-456-2 Dati 3"},{"$f":"IFERROR(INDEX(DettagliFattura[],SMALL(IF(DettagliFattura[N. fattura]=rngFattura,ROW(DettagliFattura[])-ROW(DettagliFattura[#Headers])), ROW(3:3)), MATCH($D$8, DettagliFattura[#Headers], 0)),\"\")","v":30},{"$f":"IFERROR(INDEX(DettagliFattura[],SMALL(IF(DettagliFattura[N. fattura]=rngFattura,ROW(DettagliFattura[])-ROW(DettagliFattura[#Headers])), ROW(3:3)), MATCH($E$8, DettagliFattura[#Headers], 0)),\"\")","v":{"v":6,"d":"€ 6.00"}},{"$f":"IFERROR(INDEX(DettagliFattura[],SMALL(IF(DettagliFattura[N. fattura]=rngFattura,ROW(DettagliFattura[])-ROW(DettagliFattura[#Headers])), ROW(3:3)), MATCH($F$8, DettagliFattura[#Headers], 0)),\"\")","v":{"v":7,"d":"€ 7.00"}},{"v":173,"d":"€ 173.00"}]
[null,{"$f":"IFERROR(INDEX(DettagliFattura[],SMALL(IF(DettagliFattura[N. fattura]=rngFattura,ROW(DettagliFattura[])-ROW(DettagliFattura[#Headers])), ROW(4:4)), MATCH($B$8, DettagliFattura[#Headers], 0)),\"\")","v":"Z4570"},{"$f":"IFERROR(INDEX(DettagliFattura[],SMALL(IF(DettagliFattura[N. fattura]=rngFattura,ROW(DettagliFattura[])-ROW(DettagliFattura[#Headers])), ROW(4:4)), MATCH($C$8, DettagliFattura[#Headers], 0)),\"\")","v":"Fattura 3-456-2 Dati 4"},{"$f":"IFERROR(INDEX(DettagliFattura[],SMALL(IF(DettagliFattura[N. fattura]=rngFattura,ROW(DettagliFattura[])-ROW(DettagliFattura[#Headers])), ROW(4:4)), MATCH($D$8, DettagliFattura[#Headers], 0)),\"\")","v":40},{"$f":"IFERROR(INDEX(DettagliFattura[],SMALL(IF(DettagliFattura[N. fattura]=rngFattura,ROW(DettagliFattura[])-ROW(DettagliFattura[#Headers])), ROW(4:4)), MATCH($E$8, DettagliFattura[#Headers], 0)),\"\")","v":{"v":7,"d":"€ 7.00"}},{"$f":"IFERROR(INDEX(DettagliFattura[],SMALL(IF(DettagliFattura[N. fattura]=rngFattura,ROW(DettagliFattura[])-ROW(DettagliFattura[#Headers])), ROW(4:4)), MATCH($F$8, DettagliFattura[#Headers], 0)),\"\")","v":0},{"v":280,"d":"€ 280.00"}]
[null,{"$f":"IFERROR(INDEX(DettagliFattura[],SMALL(IF(DettagliFattura[N. fattura]=rngFattura,ROW(DettagliFattura[])-ROW(DettagliFattura[#Headers])), ROW(5:5)), MATCH($B$8, DettagliFattura[#Headers], 0)),\"\")","v":"Z4571"},{"$f":"IFERROR(INDEX(DettagliFattura[],SMALL(IF(DettagliFattura[N. fattura]=rngFattura,ROW(DettagliFattura[])-ROW(DettagliFattura[#Headers])), ROW(5:5)), MATCH($C$8, DettagliFattura[#Headers], 0)),\"\")","v":"Fattura 3-456-2 Dati 5"},{"$f":"IFERROR(INDEX(DettagliFattura[],SMALL(IF(DettagliFattura[N. fattura]=rngFattura,ROW(DettagliFattura[])-ROW(DettagliFattura[#Headers])), ROW(5:5)), MATCH($D$8, DettagliFattura[#Headers], 0)),\"\")","v":10},{"$f":"IFERROR(INDEX(DettagliFattura[],SMALL(IF(DettagliFattura[N. fattura]=rngFattura,ROW(DettagliFattura[])-ROW(DettagliFattura[#Headers])), ROW(5:5)), MATCH($E$8, DettagliFattura[#Headers], 0)),\"\")","v":{"v":4,"d":"€ 4.00"}},{"$f":"IFERROR(INDEX(DettagliFattura[],SMALL(IF(DettagliFattura[N. fattura]=rngFattura,ROW(DettagliFattura[])-ROW(DettagliFattura[#Headers])), ROW(5:5)), MATCH($F$8, DettagliFattura[#Headers], 0)),\"\")","v":0},{"v":40,"d":"€ 40.00"}]
[null,{"$f":"IFERROR(INDEX(DettagliFattura[],SMALL(IF(DettagliFattura[N. fattura]=rngFattura,ROW(DettagliFattura[])-ROW(DettagliFattura[#Headers])), ROW(6:6)), MATCH($B$8, DettagliFattura[#Headers], 0)),\"\")","v":"Z4572"},{"$f":"IFERROR(INDEX(DettagliFattura[],SMALL(IF(DettagliFattura[N. fattura]=rngFattura,ROW(DettagliFattura[])-ROW(DettagliFattura[#Headers])), ROW(6:6)), MATCH($C$8, DettagliFattura[#Headers], 0)),\"\")","v":"Fattura 3-456-2 Dati 6"},{"$f":"IFERROR(INDEX(DettagliFattura[],SMALL(IF(DettagliFattura[N. fattura]=rngFattura,ROW(DettagliFattura[])-ROW(DettagliFattura[#Headers])), ROW(6:6)), MATCH($D$8, DettagliFattura[#Headers], 0)),\"\")","v":5},{"$f":"IFERROR(INDEX(DettagliFattura[],SMALL(IF(DettagliFattura[N. fattura]=rngFattura,ROW(DettagliFattura[])-ROW(DettagliFattura[#Headers])), ROW(6:6)), MATCH($E$8, DettagliFattura[#Headers], 0)),\"\")","v":{"v":8,"d":"€ 8.00"}},{"$f":"IFERROR(INDEX(DettagliFattura[],SMALL(IF(DettagliFattura[N. fattura]=rngFattura,ROW(DettagliFattura[])-ROW(DettagliFattura[#Headers])), ROW(6:6)), MATCH($F$8, DettagliFattura[#Headers], 0)),\"\")","v":0},{"v":40,"d":"€ 40.00"}]
[null,{"$f":"IFERROR(INDEX(DettagliFattura[],SMALL(IF(DettagliFattura[N. fattura]=rngFattura,ROW(DettagliFattura[])-ROW(DettagliFattura[#Headers])), ROW(7:7)), MATCH($B$8, DettagliFattura[#Headers], 0)),\"\")","v":"Z4573"},{"$f":"IFERROR(INDEX(DettagliFattura[],SMALL(IF(DettagliFattura[N. fattura]=rngFattura,ROW(DettagliFattura[])-ROW(DettagliFattura[#Headers])), ROW(7:7)), MATCH($C$8, DettagliFattura[#Headers], 0)),\"\")","v":"Fattura 3-456-2 Dati 7"},{"$f":"IFERROR(INDEX(DettagliFattura[],SMALL(IF(DettagliFattura[N. fattura]=rngFattura,ROW(DettagliFattura[])-ROW(DettagliFattura[#Headers])), ROW(7:7)), MATCH($D$8, DettagliFattura[#Headers], 0)),\"\")","v":70},{"$f":"IFERROR(INDEX(DettagliFattura[],SMALL(IF(DettagliFattura[N. fattura]=rngFattura,ROW(DettagliFattura[])-ROW(DettagliFattura[#Headers])), ROW(7:7)), MATCH($E$8, DettagliFattura[#Headers], 0)),\"\")","v":{"v":6,"d":"€ 6.00"}},{"$f":"IFERROR(INDEX(DettagliFattura[],SMALL(IF(DettagliFattura[N. fattura]=rngFattura,ROW(DettagliFattura[])-ROW(DettagliFattura[#Headers])), ROW(7:7)), MATCH($F$8, DettagliFattura[#Headers], 0)),\"\")","v":0},{"v":420,"d":"€ 420.00"}]
[null,{"$f":"IFERROR(INDEX(DettagliFattura[],SMALL(IF(DettagliFattura[N. fattura]=rngFattura,ROW(DettagliFattura[])-ROW(DettagliFattura[#Headers])), ROW(8:8)), MATCH($B$8, DettagliFattura[#Headers], 0)),\"\")","v":"Z4574"},{"$f":"IFERROR(INDEX(DettagliFattura[],SMALL(IF(DettagliFattura[N. fattura]=rngFattura,ROW(DettagliFattura[])-ROW(DettagliFattura[#Headers])), ROW(8:8)), MATCH($C$8, DettagliFattura[#Headers], 0)),\"\")","v":"Fattura 3-456-2 Dati 8"},{"$f":"IFERROR(INDEX(DettagliFattura[],SMALL(IF(DettagliFattura[N. fattura]=rngFattura,ROW(DettagliFattura[])-ROW(DettagliFattura[#Headers])), ROW(8:8)), MATCH($D$8, DettagliFattura[#Headers], 0)),\"\")","v":25},{"$f":"IFERROR(INDEX(DettagliFattura[],SMALL(IF(DettagliFattura[N. fattura]=rngFattura,ROW(DettagliFattura[])-ROW(DettagliFattura[#Headers])), ROW(8:8)), MATCH($E$8, DettagliFattura[#Headers], 0)),\"\")","v":{"v":4,"d":"€ 4.00"}},{"$f":"IFERROR(INDEX(DettagliFattura[],SMALL(IF(DettagliFattura[N. fattura]=rngFattura,ROW(DettagliFattura[])-ROW(DettagliFattura[#Headers])), ROW(8:8)), MATCH($F$8, DettagliFattura[#Headers], 0)),\"\")","v":0},{"v":100,"d":"€ 100.00"}]
[null,{"$f":"IFERROR(INDEX(DettagliFattura[],SMALL(IF(DettagliFattura[N. fattura]=rngFattura,ROW(DettagliFattura[])-ROW(DettagliFattura[#Headers])), ROW(9:9)), MATCH($B$8, DettagliFattura[#Headers], 0)),\"\")","v":"Z4575"},{"$f":"IFERROR(INDEX(DettagliFattura[],SMALL(IF(DettagliFattura[N. fattura]=rngFattura,ROW(DettagliFattura[])-ROW(DettagliFattura[#Headers])), ROW(9:9)), MATCH($C$8, DettagliFattura[#Headers], 0)),\"\")","v":"Fattura 3-456-2 Dati 9"},{"$f":"IFERROR(INDEX(DettagliFattura[],SMALL(IF(DettagliFattura[N. fattura]=rngFattura,ROW(DettagliFattura[])-ROW(DettagliFattura[#Headers])), ROW(9:9)), MATCH($D$8, DettagliFattura[#Headers], 0)),\"\")","v":5},{"$f":"IFERROR(INDEX(DettagliFattura[],SMALL(IF(DettagliFattura[N. fattura]=rngFattura,ROW(DettagliFattura[])-ROW(DettagliFattura[#Headers])), ROW(9:9)), MATCH($E$8, DettagliFattura[#Headers], 0)),\"\")","v":{"v":7,"d":"€ 7.00"}},{"$f":"IFERROR(INDEX(DettagliFattura[],SMALL(IF(DettagliFattura[N. fattura]=rngFattura,ROW(DettagliFattura[])-ROW(DettagliFattura[#Headers])), ROW(9:9)), MATCH($F$8, DettagliFattura[#Headers], 0)),\"\")","v":{"v":3,"d":"€ 3.00"}},{"v":32,"d":"€ 32.00"}]
[null,{"$f":"IFERROR(INDEX(DettagliFattura[],SMALL(IF(DettagliFattura[N. fattura]=rngFattura,ROW(DettagliFattura[])-ROW(DettagliFattura[#Headers])), ROW(10:10)), MATCH($B$8, DettagliFattura[#Headers], 0)),\"\")","v":"Z4576"},{"$f":"IFERROR(INDEX(DettagliFattura[],SMALL(IF(DettagliFattura[N. fattura]=rngFattura,ROW(DettagliFattura[])-ROW(DettagliFattura[#Headers])), ROW(10:10)), MATCH($C$8, DettagliFattura[#Headers], 0)),\"\")","v":"Fattura 3-456-2 Dati 10"},{"$f":"IFERROR(INDEX(DettagliFattura[],SMALL(IF(DettagliFattura[N. fattura]=rngFattura,ROW(DettagliFattura[])-ROW(DettagliFattura[#Headers])), ROW(10:10)), MATCH($D$8, DettagliFattura[#Headers], 0)),\"\")","v":80},{"$f":"IFERROR(INDEX(DettagliFattura[],SMALL(IF(DettagliFattura[N. fattura]=rngFattura,ROW(DettagliFattura[])-ROW(DettagliFattura[#Headers])), ROW(10:10)), MATCH($E$8, DettagliFattura[#Headers], 0)),\"\")","v":{"v":1,"d":"€ 1.00"}},{"$f":"IFERROR(INDEX(DettagliFattura[],SMALL(IF(DettagliFattura[N. fattura]=rngFattura,ROW(DettagliFattura[])-ROW(DettagliFattura[#Headers])), ROW(10:10)), MATCH($F$8, DettagliFattura[#Headers], 0)),\"\")","v":0},{"v":80,"d":"€ 80.00"}]
[null,{"$f":"IFERROR(INDEX(DettagliFattura[],SMALL(IF(DettagliFattura[N. fattura]=rngFattura,ROW(DettagliFattura[])-ROW(DettagliFattura[#Headers])), ROW(11:11)), MATCH($B$8, DettagliFattura[#Headers], 0)),\"\")","v":"Z4577"},{"$f":"IFERROR(INDEX(DettagliFattura[],SMALL(IF(DettagliFattura[N. fattura]=rngFattura,ROW(DettagliFattura[])-ROW(DettagliFattura[#Headers])), ROW(11:11)), MATCH($C$8, DettagliFattura[#Headers], 0)),\"\")","v":"Fattura 3-456-2 Dati 11"},{"$f":"IFERROR(INDEX(DettagliFattura[],SMALL(IF(DettagliFattura[N. fattura]=rngFattura,ROW(DettagliFattura[])-ROW(DettagliFattura[#Headers])), ROW(11:11)), MATCH($D$8, DettagliFattura[#Headers], 0)),\"\")","v":65},{"$f":"IFERROR(INDEX(DettagliFattura[],SMALL(IF(DettagliFattura[N. fattura]=rngFattura,ROW(DettagliFattura[])-ROW(DettagliFattura[#Headers])), ROW(11:11)), MATCH($E$8, DettagliFattura[#Headers], 0)),\"\")","v":{"v":7,"d":"€ 7.00"}},{"$f":"IFERROR(INDEX(DettagliFattura[],SMALL(IF(DettagliFattura[N. fattura]=rngFattura,ROW(DettagliFattura[])-ROW(DettagliFattura[#Headers])), ROW(11:11)), MATCH($F$8, DettagliFattura[#Headers], 0)),\"\")","v":0},{"v":455,"d":"€ 455.00"}]
[null,{"$f":"IFERROR(INDEX(DettagliFattura[],SMALL(IF(DettagliFattura[N. fattura]=rngFattura,ROW(DettagliFattura[])-ROW(DettagliFattura[#Headers])), ROW(12:12)), MATCH($B$8, DettagliFattura[#Headers], 0)),\"\")","v":"Z4578"},{"$f":"IFERROR(INDEX(DettagliFattura[],SMALL(IF(DettagliFattura[N. fattura]=rngFattura,ROW(DettagliFattura[])-ROW(DettagliFattura[#Headers])), ROW(12:12)), MATCH($C$8, DettagliFattura[#Headers], 0)),\"\")","v":"Fattura 3-456-2 Dati 12"},{"$f":"IFERROR(INDEX(DettagliFattura[],SMALL(IF(DettagliFattura[N. fattura]=rngFattura,ROW(DettagliFattura[])-ROW(DettagliFattura[#Headers])), ROW(12:12)), MATCH($D$8, DettagliFattura[#Headers], 0)),\"\")","v":44},{"$f":"IFERROR(INDEX(DettagliFattura[],SMALL(IF(DettagliFattura[N. fattura]=rngFattura,ROW(DettagliFattura[])-ROW(DettagliFattura[#Headers])), ROW(12:12)), MATCH($E$8, DettagliFattura[#Headers], 0)),\"\")","v":{"v":1,"d":"€ 1.00"}},{"$f":"IFERROR(INDEX(DettagliFattura[],SMALL(IF(DettagliFattura[N. fattura]=rngFattura,ROW(DettagliFattura[])-ROW(DettagliFattura[#Headers])), ROW(12:12)), MATCH($F$8, DettagliFattura[#Headers], 0)),\"\")","v":0},{"v":44,"d":"€ 44.00"}]
[null,{"$f":"IFERROR(INDEX(DettagliFattura[],SMALL(IF(DettagliFattura[N. fattura]=rngFattura,ROW(DettagliFattura[])-ROW(DettagliFattura[#Headers])), ROW(13:13)), MATCH($B$8, DettagliFattura[#Headers], 0)),\"\")","v":""},{"$f":"IFERROR(INDEX(DettagliFattura[],SMALL(IF(DettagliFattura[N. fattura]=rngFattura,ROW(DettagliFattura[])-ROW(DettagliFattura[#Headers])), ROW(13:13)), MATCH($C$8, DettagliFattura[#Headers], 0)),\"\")","v":""},{"$f":"IFERROR(INDEX(DettagliFattura[],SMALL(IF(DettagliFattura[N. fattura]=rngFattura,ROW(DettagliFattura[])-ROW(DettagliFattura[#Headers])), ROW(13:13)), MATCH($D$8, DettagliFattura[#Headers], 0)),\"\")","v":""},{"$f":"IFERROR(INDEX(DettagliFattura[],SMALL(IF(DettagliFattura[N. fattura]=rngFattura,ROW(DettagliFattura[])-ROW(DettagliFattura[#Headers])), ROW(13:13)), MATCH($E$8, DettagliFattura[#Headers], 0)),\"\")","v":""},{"$f":"IFERROR(INDEX(DettagliFattura[],SMALL(IF(DettagliFattura[N. fattura]=rngFattura,ROW(DettagliFattura[])-ROW(DettagliFattura[#Headers])), ROW(13:13)), MATCH($F$8, DettagliFattura[#Headers], 0)),\"\")","v":""},""]
[null,{"$f":"IFERROR(INDEX(DettagliFattura[],SMALL(IF(DettagliFattura[N. fattura]=rngFattura,ROW(DettagliFattura[])-ROW(DettagliFattura[#Headers])), ROW(14:14)), MATCH($B$8, DettagliFattura[#Headers], 0)),\"\")","v":""},{"$f":"IFERROR(INDEX(DettagliFattura[],SMALL(IF(DettagliFattura[N. fattura]=rngFattura,ROW(DettagliFattura[])-ROW(DettagliFattura[#Headers])), ROW(14:14)), MATCH($C$8, DettagliFattura[#Headers], 0)),\"\")","v":""},{"$f":"IFERROR(INDEX(DettagliFattura[],SMALL(IF(DettagliFattura[N. fattura]=rngFattura,ROW(DettagliFattura[])-ROW(DettagliFattura[#Headers])), ROW(14:14)), MATCH($D$8, DettagliFattura[#Headers], 0)),\"\")","v":""},{"$f":"IFERROR(INDEX(DettagliFattura[],SMALL(IF(DettagliFattura[N. fattura]=rngFattura,ROW(DettagliFattura[])-ROW(DettagliFattura[#Headers])), ROW(14:14)), MATCH($E$8, DettagliFattura[#Headers], 0)),\"\")","v":""},{"$f":"IFERROR(INDEX(DettagliFattura[],SMALL(IF(DettagliFattura[N. fattura]=rngFattura,ROW(DettagliFattura[])-ROW(DettagliFattura[#Headers])), ROW(14:14)), MATCH($F$8, DettagliFattura[#Headers], 0)),\"\")","v":""},""]
[null,{"$f":"IFERROR(INDEX(DettagliFattura[],SMALL(IF(DettagliFattura[N. fattura]=rngFattura,ROW(DettagliFattura[])-ROW(DettagliFattura[#Headers])), ROW(15:15)), MATCH($B$8, DettagliFattura[#Headers], 0)),\"\")","v":""},{"$f":"IFERROR(INDEX(DettagliFattura[],SMALL(IF(DettagliFattura[N. fattura]=rngFattura,ROW(DettagliFattura[])-ROW(DettagliFattura[#Headers])), ROW(15:15)), MATCH($C$8, DettagliFattura[#Headers], 0)),\"\")","v":""},{"$f":"IFERROR(INDEX(DettagliFattura[],SMALL(IF(DettagliFattura[N. fattura]=rngFattura,ROW(DettagliFattura[])-ROW(DettagliFattura[#Headers])), ROW(15:15)), MATCH($D$8, DettagliFattura[#Headers], 0)),\"\")","v":""},{"$f":"IFERROR(INDEX(DettagliFattura[],SMALL(IF(DettagliFattura[N. fattura]=rngFattura,ROW(DettagliFattura[])-ROW(DettagliFattura[#Headers])), ROW(15:15)), MATCH($E$8, DettagliFattura[#Headers], 0)),\"\")","v":""},{"$f":"IFERROR(INDEX(DettagliFattura[],SMALL(IF(DettagliFattura[N. fattura]=rngFattura,ROW(DettagliFattura[])-ROW(DettagliFattura[#Headers])), ROW(15:15)), MATCH($F$8, DettagliFattura[#Headers], 0)),\"\")","v":""},""]
[null,{"$f":"IFERROR(INDEX(DettagliFattura[],SMALL(IF(DettagliFattura[N. fattura]=rngFattura,ROW(DettagliFattura[])-ROW(DettagliFattura[#Headers])), ROW(16:16)), MATCH($B$8, DettagliFattura[#Headers], 0)),\"\")","v":""},{"$f":"IFERROR(INDEX(DettagliFattura[],SMALL(IF(DettagliFattura[N. fattura]=rngFattura,ROW(DettagliFattura[])-ROW(DettagliFattura[#Headers])), ROW(16:16)), MATCH($C$8, DettagliFattura[#Headers], 0)),\"\")","v":""},{"$f":"IFERROR(INDEX(DettagliFattura[],SMALL(IF(DettagliFattura[N. fattura]=rngFattura,ROW(DettagliFattura[])-ROW(DettagliFattura[#Headers])), ROW(16:16)), MATCH($D$8, DettagliFattura[#Headers], 0)),\"\")","v":""},{"$f":"IFERROR(INDEX(DettagliFattura[],SMALL(IF(DettagliFattura[N. fattura]=rngFattura,ROW(DettagliFattura[])-ROW(DettagliFattura[#Headers])), ROW(16:16)), MATCH($E$8, DettagliFattura[#Headers], 0)),\"\")","v":""},{"$f":"IFERROR(INDEX(DettagliFattura[],SMALL(IF(DettagliFattura[N. fattura]=rngFattura,ROW(DettagliFattura[])-ROW(DettagliFattura[#Headers])), ROW(16:16)), MATCH($F$8, DettagliFattura[#Headers], 0)),\"\")","v":""},""]
[null,{"$f":"IFERROR(INDEX(DettagliFattura[],SMALL(IF(DettagliFattura[N. fattura]=rngFattura,ROW(DettagliFattura[])-ROW(DettagliFattura[#Headers])), ROW(17:17)), MATCH($B$8, DettagliFattura[#Headers], 0)),\"\")","v":""},{"$f":"IFERROR(INDEX(DettagliFattura[],SMALL(IF(DettagliFattura[N. fattura]=rngFattura,ROW(DettagliFattura[])-ROW(DettagliFattura[#Headers])), ROW(17:17)), MATCH($C$8, DettagliFattura[#Headers], 0)),\"\")","v":""},{"$f":"IFERROR(INDEX(DettagliFattura[],SMALL(IF(DettagliFattura[N. fattura]=rngFattura,ROW(DettagliFattura[])-ROW(DettagliFattura[#Headers])), ROW(17:17)), MATCH($D$8, DettagliFattura[#Headers], 0)),\"\")","v":""},{"$f":"IFERROR(INDEX(DettagliFattura[],SMALL(IF(DettagliFattura[N. fattura]=rngFattura,ROW(DettagliFattura[])-ROW(DettagliFattura[#Headers])), ROW(17:17)), MATCH($E$8, DettagliFattura[#Headers], 0)),\"\")","v":""},{"$f":"IFERROR(INDEX(DettagliFattura[],SMALL(IF(DettagliFattura[N. fattura]=rngFattura,ROW(DettagliFattura[])-ROW(DettagliFattura[#Headers])), ROW(17:17)), MATCH($F$8, DettagliFattura[#Headers], 0)),\"\")","v":""},""]
[null,{"$f":"IFERROR(INDEX(DettagliFattura[],SMALL(IF(DettagliFattura[N. fattura]=rngFattura,ROW(DettagliFattura[])-ROW(DettagliFattura[#Headers])), ROW(18:18)), MATCH($B$8, DettagliFattura[#Headers], 0)),\"\")","v":""},{"$f":"IFERROR(INDEX(DettagliFattura[],SMALL(IF(DettagliFattura[N. fattura]=rngFattura,ROW(DettagliFattura[])-ROW(DettagliFattura[#Headers])), ROW(18:18)), MATCH($C$8, DettagliFattura[#Headers], 0)),\"\")","v":""},{"$f":"IFERROR(INDEX(DettagliFattura[],SMALL(IF(DettagliFattura[N. fattura]=rngFattura,ROW(DettagliFattura[])-ROW(DettagliFattura[#Headers])), ROW(18:18)), MATCH($D$8, DettagliFattura[#Headers], 0)),\"\")","v":""},{"$f":"IFERROR(INDEX(DettagliFattura[],SMALL(IF(DettagliFattura[N. fattura]=rngFattura,ROW(DettagliFattura[])-ROW(DettagliFattura[#Headers])), ROW(18:18)), MATCH($E$8, DettagliFattura[#Headers], 0)),\"\")","v":""},{"$f":"IFERROR(INDEX(DettagliFattura[],SMALL(IF(DettagliFattura[N. fattura]=rngFattura,ROW(DettagliFattura[])-ROW(DettagliFattura[#Headers])), ROW(18:18)), MATCH($F$8, DettagliFattura[#Headers], 0)),\"\")","v":""},""]
[null,{"$f":"IFERROR(INDEX(DettagliFattura[],SMALL(IF(DettagliFattura[N. fattura]=rngFattura,ROW(DettagliFattura[])-ROW(DettagliFattura[#Headers])), ROW(19:19)), MATCH($B$8, DettagliFattura[#Headers], 0)),\"\")","v":""},{"$f":"IFERROR(INDEX(DettagliFattura[],SMALL(IF(DettagliFattura[N. fattura]=rngFattura,ROW(DettagliFattura[])-ROW(DettagliFattura[#Headers])), ROW(19:19)), MATCH($C$8, DettagliFattura[#Headers], 0)),\"\")","v":""},{"$f":"IFERROR(INDEX(DettagliFattura[],SMALL(IF(DettagliFattura[N. fattura]=rngFattura,ROW(DettagliFattura[])-ROW(DettagliFattura[#Headers])), ROW(19:19)), MATCH($D$8, DettagliFattura[#Headers], 0)),\"\")","v":""},{"$f":"IFERROR(INDEX(DettagliFattura[],SMALL(IF(DettagliFattura[N. fattura]=rngFattura,ROW(DettagliFattura[])-ROW(DettagliFattura[#Headers])), ROW(19:19)), MATCH($E$8, DettagliFattura[#Headers], 0)),\"\")","v":""},{"$f":"IFERROR(INDEX(DettagliFattura[],SMALL(IF(DettagliFattura[N. fattura]=rngFattura,ROW(DettagliFattura[])-ROW(DettagliFattura[#Headers])), ROW(19:19)), MATCH($F$8, DettagliFattura[#Headers], 0)),\"\")","v":""},""]
[null,{"$f":"IFERROR(INDEX(DettagliFattura[],SMALL(IF(DettagliFattura[N. fattura]=rngFattura,ROW(DettagliFattura[])-ROW(DettagliFattura[#Headers])), ROW(20:20)), MATCH($B$8, DettagliFattura[#Headers], 0)),\"\")","v":""},{"$f":"IFERROR(INDEX(DettagliFattura[],SMALL(IF(DettagliFattura[N. fattura]=rngFattura,ROW(DettagliFattura[])-ROW(DettagliFattura[#Headers])), ROW(20:20)), MATCH($C$8, DettagliFattura[#Headers], 0)),\"\")","v":""},{"$f":"IFERROR(INDEX(DettagliFattura[],SMALL(IF(DettagliFattura[N. fattura]=rngFattura,ROW(DettagliFattura[])-ROW(DettagliFattura[#Headers])), ROW(20:20)), MATCH($D$8, DettagliFattura[#Headers], 0)),\"\")","v":""},{"$f":"IFERROR(INDEX(DettagliFattura[],SMALL(IF(DettagliFattura[N. fattura]=rngFattura,ROW(DettagliFattura[])-ROW(DettagliFattura[#Headers])), ROW(20:20)), MATCH($E$8, DettagliFattura[#Headers], 0)),\"\")","v":""},{"$f":"IFERROR(INDEX(DettagliFattura[],SMALL(IF(DettagliFattura[N. fattura]=rngFattura,ROW(DettagliFattura[])-ROW(DettagliFattura[#Headers])), ROW(20:20)), MATCH($F$8, DettagliFattura[#Headers], 0)),\"\")","v":""},""]
[null,{"$f":"IFERROR(INDEX(DettagliFattura[],SMALL(IF(DettagliFattura[N. fattura]=rngFattura,ROW(DettagliFattura[])-ROW(DettagliFattura[#Headers])), ROW(21:21)), MATCH($B$8, DettagliFattura[#Headers], 0)),\"\")","v":""},{"$f":"IFERROR(INDEX(DettagliFattura[],SMALL(IF(DettagliFattura[N. fattura]=rngFattura,ROW(DettagliFattura[])-ROW(DettagliFattura[#Headers])), ROW(21:21)), MATCH($C$8, DettagliFattura[#Headers], 0)),\"\")","v":""},{"$f":"IFERROR(INDEX(DettagliFattura[],SMALL(IF(DettagliFattura[N. fattura]=rngFattura,ROW(DettagliFattura[])-ROW(DettagliFattura[#Headers])), ROW(21:21)), MATCH($D$8, DettagliFattura[#Headers], 0)),\"\")","v":""},{"$f":"IFERROR(INDEX(DettagliFattura[],SMALL(IF(DettagliFattura[N. fattura]=rngFattura,ROW(DettagliFattura[])-ROW(DettagliFattura[#Headers])), ROW(21:21)), MATCH($E$8, DettagliFattura[#Headers], 0)),\"\")","v":""},{"$f":"IFERROR(INDEX(DettagliFattura[],SMALL(IF(DettagliFattura[N. fattura]=rngFattura,ROW(DettagliFattura[])-ROW(DettagliFattura[#Headers])), ROW(21:21)), MATCH($F$8, DettagliFattura[#Headers], 0)),\"\")","v":""},""]
[null,{"$f":"IFERROR(INDEX(DettagliFattura[],SMALL(IF(DettagliFattura[N. fattura]=rngFattura,ROW(DettagliFattura[])-ROW(DettagliFattura[#Headers])), ROW(22:22)), MATCH($B$8, DettagliFattura[#Headers], 0)),\"\")","v":""},{"$f":"IFERROR(INDEX(DettagliFattura[],SMALL(IF(DettagliFattura[N. fattura]=rngFattura,ROW(DettagliFattura[])-ROW(DettagliFattura[#Headers])), ROW(22:22)), MATCH($C$8, DettagliFattura[#Headers], 0)),\"\")","v":""},{"$f":"IFERROR(INDEX(DettagliFattura[],SMALL(IF(DettagliFattura[N. fattura]=rngFattura,ROW(DettagliFattura[])-ROW(DettagliFattura[#Headers])), ROW(22:22)), MATCH($D$8, DettagliFattura[#Headers], 0)),\"\")","v":""},{"$f":"IFERROR(INDEX(DettagliFattura[],SMALL(IF(DettagliFattura[N. fattura]=rngFattura,ROW(DettagliFattura[])-ROW(DettagliFattura[#Headers])), ROW(22:22)), MATCH($E$8, DettagliFattura[#Headers], 0)),\"\")","v":""},{"$f":"IFERROR(INDEX(DettagliFattura[],SMALL(IF(DettagliFattura[N. fattura]=rngFattura,ROW(DettagliFattura[])-ROW(DettagliFattura[#Headers])), ROW(22:22)), MATCH($F$8, DettagliFattura[#Headers], 0)),\"\")","v":""},""]
[null,{"$f":"IFERROR(INDEX(DettagliFattura[],SMALL(IF(DettagliFattura[N. fattura]=rngFattura,ROW(DettagliFattura[])-ROW(DettagliFattura[#Headers])), ROW(23:23)), MATCH($B$8, DettagliFattura[#Headers], 0)),\"\")","v":""},{"$f":"IFERROR(INDEX(DettagliFattura[],SMALL(IF(DettagliFattura[N. fattura]=rngFattura,ROW(DettagliFattura[])-ROW(DettagliFattura[#Headers])), ROW(23:23)), MATCH($C$8, DettagliFattura[#Headers], 0)),\"\")","v":""},{"$f":"IFERROR(INDEX(DettagliFattura[],SMALL(IF(DettagliFattura[N. fattura]=rngFattura,ROW(DettagliFattura[])-ROW(DettagliFattura[#Headers])), ROW(23:23)), MATCH($D$8, DettagliFattura[#Headers], 0)),\"\")","v":""},{"$f":"IFERROR(INDEX(DettagliFattura[],SMALL(IF(DettagliFattura[N. fattura]=rngFattura,ROW(DettagliFattura[])-ROW(DettagliFattura[#Headers])), ROW(23:23)), MATCH($E$8, DettagliFattura[#Headers], 0)),\"\")","v":""},{"$f":"IFERROR(INDEX(DettagliFattura[],SMALL(IF(DettagliFattura[N. fattura]=rngFattura,ROW(DettagliFattura[])-ROW(DettagliFattura[#Headers])), ROW(23:23)), MATCH($F$8, DettagliFattura[#Headers], 0)),\"\")","v":""},""]
[null,{"$f":"IFERROR(INDEX(DettagliFattura[],SMALL(IF(DettagliFattura[N. fattura]=rngFattura,ROW(DettagliFattura[])-ROW(DettagliFattura[#Headers])), ROW(24:24)), MATCH($B$8, DettagliFattura[#Headers], 0)),\"\")","v":""},{"$f":"IFERROR(INDEX(DettagliFattura[],SMALL(IF(DettagliFattura[N. fattura]=rngFattura,ROW(DettagliFattura[])-ROW(DettagliFattura[#Headers])), ROW(24:24)), MATCH($C$8, DettagliFattura[#Headers], 0)),\"\")","v":""},{"$f":"IFERROR(INDEX(DettagliFattura[],SMALL(IF(DettagliFattura[N. fattura]=rngFattura,ROW(DettagliFattura[])-ROW(DettagliFattura[#Headers])), ROW(24:24)), MATCH($D$8, DettagliFattura[#Headers], 0)),\"\")","v":""},{"$f":"IFERROR(INDEX(DettagliFattura[],SMALL(IF(DettagliFattura[N. fattura]=rngFattura,ROW(DettagliFattura[])-ROW(DettagliFattura[#Headers])), ROW(24:24)), MATCH($E$8, DettagliFattura[#Headers], 0)),\"\")","v":""},{"$f":"IFERROR(INDEX(DettagliFattura[],SMALL(IF(DettagliFattura[N. fattura]=rngFattura,ROW(DettagliFattura[])-ROW(DettagliFattura[#Headers])), ROW(24:24)), MATCH($F$8, DettagliFattura[#Headers], 0)),\"\")","v":""},""]
[null,{"$f":"IFERROR(INDEX(DettagliFattura[],SMALL(IF(DettagliFattura[N. fattura]=rngFattura,ROW(DettagliFattura[])-ROW(DettagliFattura[#Headers])), ROW(25:25)), MATCH($B$8, DettagliFattura[#Headers], 0)),\"\")","v":""},{"$f":"IFERROR(INDEX(DettagliFattura[],SMALL(IF(DettagliFattura[N. fattura]=rngFattura,ROW(DettagliFattura[])-ROW(DettagliFattura[#Headers])), ROW(25:25)), MATCH($C$8, DettagliFattura[#Headers], 0)),\"\")","v":""},{"$f":"IFERROR(INDEX(DettagliFattura[],SMALL(IF(DettagliFattura[N. fattura]=rngFattura,ROW(DettagliFattura[])-ROW(DettagliFattura[#Headers])), ROW(25:25)), MATCH($D$8, DettagliFattura[#Headers], 0)),\"\")","v":""},{"$f":"IFERROR(INDEX(DettagliFattura[],SMALL(IF(DettagliFattura[N. fattura]=rngFattura,ROW(DettagliFattura[])-ROW(DettagliFattura[#Headers])), ROW(25:25)), MATCH($E$8, DettagliFattura[#Headers], 0)),\"\")","v":""},{"$f":"IFERROR(INDEX(DettagliFattura[],SMALL(IF(DettagliFattura[N. fattura]=rngFattura,ROW(DettagliFattura[])-ROW(DettagliFattura[#Headers])), ROW(25:25)), MATCH($F$8, DettagliFattura[#Headers], 0)),\"\")","v":""},""]
[{"$nulls":5},"Subtotale fattura",{"$f":"SUM(FatturaProgetto[Prezzo])","v":{"v":2014,"d":"€ 2,014.00"}}]
[{"$nulls":5},"Aliquota d'imposta",{"$f":"VLOOKUP(rngFattura,FatturePrincipale[],5)","v":{"v":0.0875,"d":"8.75%"}}]
[{"$nulls":5},"IVA",{"$f":"G34*G35","v":{"v":176.225,"d":"€ 176.23"}}]
[{"$nulls":5},"Altro",{"$f":"VLOOKUP(rngFattura,FatturePrincipale[],6)","v":0}]
[null,{"$f":"\"Gli assegni devono essere intestati a \"&NomeSocietà&\".\"","v":"Gli assegni devono essere intestati a Nome società."},{"$nulls":3},"Acconto ricevuto",{"$f":"VLOOKUP(rngFattura,FatturePrincipale[],7)","v":0}]
[null,"Pagamento a <#> giorni. In caso di ritardo nel pagamento sarà applicata una maggiorazione del <#>% al mese.",{"$nulls":3},"TOTALE",{"$f":"(G34+G36+G37)-G38","v":{"v":2190.225,"d":"€ 2,190.23"}}]

{"sheet":"Clienti","index":1,"n_rows":6,"n_cols":12,"rows_kept":6}
[]
[null,null,"Clienti"]
[null,"Ricerca","N. società","Nome società","Nome contatto","Indirizzo","Città","Provincia","CAP","Telefono","Posta elettronica","Fax"]
[null,{"$f":"C4& \" - \"&D4","v":"1 - Tailspin Toys "},1,"Tailspin Toys ","Robert Lyon","Corso Milano 13","Milano","MI","123456","432-555-0178","prova@example.com","432-555-0187"]
[null,"2 - Contoso, Ltd",2,"Contoso, Ltd","Sanjay Patel","Via Torino 21","Barletta","BA","098765","432-555-0189","prova@example.com","432-555-0123"]
[null,"Totali",{"$f":"\"Clienti totali: \"&SUBTOTAL(103,ElencoClienti[N. società])","v":"Clienti totali: 2"}]

{"sheet":"Fatture - Principale","index":2,"n_rows":6,"n_cols":11,"rows_kept":6}
[]
[null,"Fatture"]
[null,"N. fattura","Società","Data fattura","Descrizione del progetto","Aliquota d'imposta","Altro","Acconto","Totale dettagli","Totale fattura","Note"]
[null,"3-456-1","1 - Tailspin Toys ",{"$f":"TODAY()","v":"2019-08-01"},"Progetto 1",{"v":0.0875,"d":"8.75%"},{"v":100,"d":"€ 100.00"},{"v":100,"d":"€ 100.00"},{"$f":"SUMIF(DettagliFattura[N. fattura],\"=\"&FatturePrincipale[[#This Row],[N. fattura]],DettagliFattura[Totale])","v":{"v":5200,"d":"€ 5,200.00"}},{"$f":"(FatturePrincipale[[#This Row],[Totale dettagli]]*(1+FatturePrincipale[[#This Row],[Aliquota d''imposta]]))+FatturePrincipale[[#This Row],[Altro]]-FatturePrincipale[[#This Row],[Acconto]]","v":{"v":5654.999999999999,"d":"€ 5,655.00"}}]
[null,"3-456-2","2 - Contoso, Ltd",{"$f":"TODAY()+10","v":"2019-08-11"},"Progetto 2",{"v":0.0875,"d":"8.75%"},null,null,{"$f":"SUMIF(DettagliFattura[N. fattura],\"=\"&FatturePrincipale[[#This Row],[N. fattura]],DettagliFattura[Totale])","v":{"v":2014,"d":"€ 2,014.00"}},{"$f":"(FatturePrincipale[[#This Row],[Totale dettagli]]*(1+FatturePrincipale[[#This Row],[Aliquota d''imposta]]))+FatturePrincipale[[#This Row],[Altro]]-FatturePrincipale[[#This Row],[Acconto]]","v":{"v":2190.225,"d":"€ 2,190.23"}}]
[null,"Totali",{"$f":"\"Totale fatture: \"&SUBTOTAL(103,FatturePrincipale[N. fattura])","v":"Totale fatture: 2"},{"$nulls":3},{"$f":"SUBTOTAL(109,FatturePrincipale[Altro])","v":{"v":100,"d":"€ 100.00"}},{"$f":"SUBTOTAL(109,FatturePrincipale[Acconto])","v":{"v":100,"d":"€ 100.00"}},{"$f":"SUBTOTAL(109,FatturePrincipale[Totale dettagli])","v":{"v":7214,"d":"€ 7,214.00"}},{"$f":"SUBTOTAL(109,FatturePrincipale[Totale fattura])","v":{"v":7845.2249999999985,"d":"€ 7,845.23"}}]

{"sheet":"Dettagli fattura","index":3,"n_rows":40,"n_cols":8,"rows_kept":40}
[]
[null,"Dettagli fattura"]
[null,"Descrizione","N. fattura","N. articolo","Q.tà","Prezzo unitario","Sconto","Totale"]
[null,"Fattura 3-456-1 Dati 1","3-456-1",1,1,{"v":1,"d":"€ 1.00"},{"v":1,"d":"€ 1.00"},{"$f":"(DettagliFattura[[#This Row],[Q.tà]]*DettagliFattura[[#This Row],[Prezzo unitario]])-DettagliFattura[[#This Row],[Sconto]]","v":{"v":0,"d":"€ 0.00"}}]
[null,"Fattura 3-456-1 Dati 2","3-456-1",2,2,{"v":2,"d":"€ 2.00"},{"v":2,"d":"€ 2.00"},{"$f":"(DettagliFattura[[#This Row],[Q.tà]]*DettagliFattura[[#This Row],[Prezzo unitario]])-DettagliFattura[[#This Row],[Sconto]]","v":{"v":2,"d":"€ 2.00"}}]
[null,"Fattura 3-456-1 Dati 3","3-456-1",3,3,{"v":3,"d":"€ 3.00"},{"v":3,"d":"€ 3.00"},{"$f":"(DettagliFattura[[#This Row],[Q.tà]]*DettagliFattura[[#This Row],[Prezzo unitario]])-DettagliFattura[[#This Row],[Sconto]]","v":{"v":6,"d":"€ 6.00"}}]
[null,"Fattura 3-456-1 Dati 4","3-456-1",4,4,{"v":4,"d":"€ 4.00"},{"v":4,"d":"€ 4.00"},{"$f":"(DettagliFattura[[#This Row],[Q.tà]]*DettagliFattura[[#This Row],[Prezzo unitario]])-DettagliFattura[[#This Row],[Sconto]]","v":{"v":12,"d":"€ 12.00"}}]
[null,"Fattura 3-456-1 Dati 5","3-456-1",5,5,{"v":5,"d":"€ 5.00"},{"v":5,"d":"€ 5.00"},{"$f":"(DettagliFattura[[#This Row],[Q.tà]]*DettagliFattura[[#This Row],[Prezzo unitario]])-DettagliFattura[[#This Row],[Sconto]]","v":{"v":20,"d":"€ 20.00"}}]
[null,"Fattura 3-456-1 Dati 6","3-456-1",6,6,{"v":6,"d":"€ 6.00"},{"v":6,"d":"€ 6.00"},{"$f":"(DettagliFattura[[#This Row],[Q.tà]]*DettagliFattura[[#This Row],[Prezzo unitario]])-DettagliFattura[[#This Row],[Sconto]]","v":{"v":30,"d":"€ 30.00"}}]
[null,"Fattura 3-456-1 Dati 7","3-456-1",7,7,{"v":7,"d":"€ 7.00"},{"v":7,"d":"€ 7.00"},{"$f":"(DettagliFattura[[#This Row],[Q.tà]]*DettagliFattura[[#This Row],[Prezzo unitario]])-DettagliFattura[[#This Row],[Sconto]]","v":{"v":42,"d":"€ 42.00"}}]
[null,"Fattura 3-456-1 Dati 8","3-456-1",8,8,{"v":8,"d":"€ 8.00"},{"v":8,"d":"€ 8.00"},{"$f":"(DettagliFattura[[#This Row],[Q.tà]]*DettagliFattura[[#This Row],[Prezzo unitario]])-DettagliFattura[[#This Row],[Sconto]]","v":{"v":56,"d":"€ 56.00"}}]
[null,"Fattura 3-456-1 Dati 9","3-456-1",9,9,{"v":9,"d":"€ 9.00"},{"v":9,"d":"€ 9.00"},{"$f":"(DettagliFattura[[#This Row],[Q.tà]]*DettagliFattura[[#This Row],[Prezzo unitario]])-DettagliFattura[[#This Row],[Sconto]]","v":{"v":72,"d":"€ 72.00"}}]
[null,"Fattura 3-456-1 Dati 10","3-456-1",10,10,{"v":10,"d":"€ 10.00"},{"v":10,"d":"€ 10.00"},{"$f":"(DettagliFattura[[#This Row],[Q.tà]]*DettagliFattura[[#This Row],[Prezzo unitario]])-DettagliFattura[[#This Row],[Sconto]]","v":{"v":90,"d":"€ 90.00"}}]
[null,"Fattura 3-456-1 Dati 11","3-456-1",11,11,{"v":11,"d":"€ 11.00"},{"v":11,"d":"€ 11.00"},{"$f":"(DettagliFattura[[#This Row],[Q.tà]]*DettagliFattura[[#This Row],[Prezzo unitario]])-DettagliFattura[[#This Row],[Sconto]]","v":{"v":110,"d":"€ 110.00"}}]
[null,"Fattura 3-456-1 Dati 12","3-456-1",12,12,{"v":12,"d":"€ 12.00"},{"v":12,"d":"€ 12.00"},{"$f":"(DettagliFattura[[#This Row],[Q.tà]]*DettagliFattura[[#This Row],[Prezzo unitario]])-DettagliFattura[[#This Row],[Sconto]]","v":{"v":132,"d":"€ 132.00"}}]
[null,"Fattura 3-456-1 Dati 13","3-456-1",13,13,{"v":13,"d":"€ 13.00"},{"v":13,"d":"€ 13.00"},{"$f":"(DettagliFattura[[#This Row],[Q.tà]]*DettagliFattura[[#This Row],[Prezzo unitario]])-DettagliFattura[[#This Row],[Sconto]]","v":{"v":156,"d":"€ 156.00"}}]
[null,"Fattura 3-456-1 Dati 14","3-456-1",14,14,{"v":14,"d":"€ 14.00"},{"v":14,"d":"€ 14.00"},{"$f":"(DettagliFattura[[#This Row],[Q.tà]]*DettagliFattura[[#This Row],[Prezzo unitario]])-DettagliFattura[[#This Row],[Sconto]]","v":{"v":182,"d":"€ 182.00"}}]
[null,"Fattura 3-456-1 Dati 15","3-456-1",15,15,{"v":15,"d":"€ 15.00"},{"v":15,"d":"€ 15.00"},{"$f":"(DettagliFattura[[#This Row],[Q.tà]]*DettagliFattura[[#This Row],[Prezzo unitario]])-DettagliFattura[[#This Row],[Sconto]]","v":{"v":210,"d":"€ 210.00"}}]
[null,"Fattura 3-456-1 Dati 16","3-456-1",16,16,{"v":16,"d":"€ 16.00"},{"v":16,"d":"€ 16.00"},{"$f":"(DettagliFattura[[#This Row],[Q.tà]]*DettagliFattura[[#This Row],[Prezzo unitario]])-DettagliFattura[[#This Row],[Sconto]]","v":{"v":240,"d":"€ 240.00"}}]
[null,"Fattura 3-456-1 Dati 17","3-456-1",17,17,{"v":17,"d":"€ 17.00"},{"v":17,"d":"€ 17.00"},{"$f":"(DettagliFattura[[#This Row],[Q.tà]]*DettagliFattura[[#This Row],[Prezzo unitario]])-DettagliFattura[[#This Row],[Sconto]]","v":{"v":272,"d":"€ 272.00"}}]
[null,"Fattura 3-456-1 Dati 18","3-456-1",18,18,{"v":18,"d":"€ 18.00"},{"v":18,"d":"€ 18.00"},{"$f":"(DettagliFattura[[#This Row],[Q.tà]]*DettagliFattura[[#This Row],[Prezzo unitario]])-DettagliFattura[[#This Row],[Sconto]]","v":{"v":306,"d":"€ 306.00"}}]
[null,"Fattura 3-456-1 Dati 19","3-456-1",19,19,{"v":19,"d":"€ 19.00"},{"v":19,"d":"€ 19.00"},{"$f":"(DettagliFattura[[#This Row],[Q.tà]]*DettagliFattura[[#This Row],[Prezzo unitario]])-DettagliFattura[[#This Row],[Sconto]]","v":{"v":342,"d":"€ 342.00"}}]
[null,"Fattura 3-456-1 Dati 20","3-456-1",20,20,{"v":20,"d":"€ 20.00"},{"v":20,"d":"€ 20.00"},{"$f":"(DettagliFattura[[#This Row],[Q.tà]]*DettagliFattura[[#This Row],[Prezzo unitario]])-DettagliFattura[[#This Row],[Sconto]]","v":{"v":380,"d":"€ 380.00"}}]
[null,"Fattura 3-456-1 Dati 21","3-456-1",21,21,{"v":21,"d":"€ 21.00"},{"v":21,"d":"€ 21.00"},{"$f":"(DettagliFattura[[#This Row],[Q.tà]]*DettagliFattura[[#This Row],[Prezzo unitario]])-DettagliFattura[[#This Row],[Sconto]]","v":{"v":420,"d":"€ 420.00"}}]
[null,"Fattura 3-456-1 Dati 22","3-456-1",22,22,{"v":22,"d":"€ 22.00"},{"v":22,"d":"€ 22.00"},{"$f":"(DettagliFattura[[#This Row],[Q.tà]]*DettagliFattura[[#This Row],[Prezzo unitario]])-DettagliFattura[[#This Row],[Sconto]]","v":{"v":462,"d":"€ 462.00"}}]
[null,"Fattura 3-456-1 Dati 23","3-456-1",23,23,{"v":23,"d":"€ 23.00"},{"v":23,"d":"€ 23.00"},{"$f":"(DettagliFattura[[#This Row],[Q.tà]]*DettagliFattura[[#This Row],[Prezzo unitario]])-DettagliFattura[[#This Row],[Sconto]]","v":{"v":506,"d":"€ 506.00"}}]
[null,"Fattura 3-456-1 Dati 24","3-456-1",24,24,{"v":24,"d":"€ 24.00"},{"v":24,"d":"€ 24.00"},{"$f":"(DettagliFattura[[#This Row],[Q.tà]]*DettagliFattura[[#This Row],[Prezzo unitario]])-DettagliFattura[[#This Row],[Sconto]]","v":{"v":552,"d":"€ 552.00"}}]
[null,"Fattura 3-456-1 Dati 25","3-456-1",25,25,{"v":25,"d":"€ 25.00"},{"v":25,"d":"€ 25.00"},{"$f":"(DettagliFattura[[#This Row],[Q.tà]]*DettagliFattura[[#This Row],[Prezzo unitario]])-DettagliFattura[[#This Row],[Sconto]]","v":{"v":600,"d":"€ 600.00"}}]
[null,"Fattura 3-456-2 Dati 1","3-456-2","Z4567",39,{"v":5,"d":"€ 5.00"},null,{"$f":"(DettagliFattura[[#This Row],[Q.tà]]*DettagliFattura[[#This Row],[Prezzo unitario]])-DettagliFattura[[#This Row],[Sconto]]","v":{"v":195,"d":"€ 195.00"}}]
[null,"Fattura 3-456-2 Dati 2","3-456-2","Z4568",40,{"v":4,"d":"€ 4.00"},{"v":5,"d":"€ 5.00"},{"$f":"(DettagliFattura[[#This Row],[Q.tà]]*DettagliFattura[[#This Row],[Prezzo unitario]])-DettagliFattura[[#This Row],[Sconto]]","v":{"v":155,"d":"€ 155.00"}}]
[null,"Fattura 3-456-2 Dati 3","3-456-2","Z4569",30,{"v":6,"d":"€ 6.00"},{"v":7,"d":"€ 7.00"},{"$f":"(DettagliFattura[[#This Row],[Q.tà]]*DettagliFattura[[#This Row],[Prezzo unitario]])-DettagliFattura[[#This Row],[Sconto]]","v":{"v":173,"d":"€ 173.00"}}]
[null,"Fattura 3-456-2 Dati 4","3-456-2","Z4570",40,{"v":7,"d":"€ 7.00"},null,{"$f":"(DettagliFattura[[#This Row],[Q.tà]]*DettagliFattura[[#This Row],[Prezzo unitario]])-DettagliFattura[[#This Row],[Sconto]]","v":{"v":280,"d":"€ 280.00"}}]
[null,"Fattura 3-456-2 Dati 5","3-456-2","Z4571",10,{"v":4,"d":"€ 4.00"},null,{"$f":"(DettagliFattura[[#This Row],[Q.tà]]*DettagliFattura[[#This Row],[Prezzo unitario]])-DettagliFattura[[#This Row],[Sconto]]","v":{"v":40,"d":"€ 40.00"}}]
[null,"Fattura 3-456-2 Dati 6","3-456-2","Z4572",5,{"v":8,"d":"€ 8.00"},null,{"$f":"(DettagliFattura[[#This Row],[Q.tà]]*DettagliFattura[[#This Row],[Prezzo unitario]])-DettagliFattura[[#This Row],[Sconto]]","v":{"v":40,"d":"€ 40.00"}}]
[null,"Fattura 3-456-2 Dati 7","3-456-2","Z4573",70,{"v":6,"d":"€ 6.00"},null,{"$f":"(DettagliFattura[[#This Row],[Q.tà]]*DettagliFattura[[#This Row],[Prezzo unitario]])-DettagliFattura[[#This Row],[Sconto]]","v":{"v":420,"d":"€ 420.00"}}]
[null,"Fattura 3-456-2 Dati 8","3-456-2","Z4574",25,{"v":4,"d":"€ 4.00"},null,{"$f":"(DettagliFattura[[#This Row],[Q.tà]]*DettagliFattura[[#This Row],[Prezzo unitario]])-DettagliFattura[[#This Row],[Sconto]]","v":{"v":100,"d":"€ 100.00"}}]
[null,"Fattura 3-456-2 Dati 9","3-456-2","Z4575",5,{"v":7,"d":"€ 7.00"},{"v":3,"d":"€ 3.00"},{"$f":"(DettagliFattura[[#This Row],[Q.tà]]*DettagliFattura[[#This Row],[Prezzo unitario]])-DettagliFattura[[#This Row],[Sconto]]","v":{"v":32,"d":"€ 32.00"}}]
[null,"Fattura 3-456-2 Dati 10","3-456-2","Z4576",80,{"v":1,"d":"€ 1.00"},null,{"$f":"(DettagliFattura[[#This Row],[Q.tà]]*DettagliFattura[[#This Row],[Prezzo unitario]])-DettagliFattura[[#This Row],[Sconto]]","v":{"v":80,"d":"€ 80.00"}}]
[null,"Fattura 3-456-2 Dati 11","3-456-2","Z4577",65,{"v":7,"d":"€ 7.00"},null,{"$f":"(DettagliFattura[[#This Row],[Q.tà]]*DettagliFattura[[#This Row],[Prezzo unitario]])-DettagliFattura[[#This Row],[Sconto]]","v":{"v":455,"d":"€ 455.00"}}]
[null,"Fattura 3-456-2 Dati 12","3-456-2","Z4578",44,{"v":1,"d":"€ 1.00"},null,{"$f":"(DettagliFattura[[#This Row],[Q.tà]]*DettagliFattura[[#This Row],[Prezzo unitario]])-DettagliFattura[[#This Row],[Sconto]]","v":{"v":44,"d":"€ 44.00"}}]

{"sheet":"Info sul registro fatture","index":4,"n_rows":40,"n_cols":3,"rows_kept":40,"merged":[[3,1,3,7],[4,1,4,7],[5,1,5,7],[6,1,6,7],[7,2,7,7],[8,2,8,7],[9,2,9,7],[10,2,10,7],[11,2,11,7],[12,1,12,7],[13,2,13,3],[14,2,14,7],[15,1,15,7],[16,2,16,7],[17,2,17,7],[18,2,18,7],[19,2,19,7],[20,2,20,7],[21,2,21,7],[22,1,22,7],[23,1,23,7],[24,2,24,7],[25,2,25,7],[26,2,26,7],[27,2,27,7],[28,1,28,7],[29,1,29,7],[30,2,30,7],[31,2,31,7],[32,2,32,7],[33,2,33,7],[34,2,34,7],[36,2,36,7],[37,2,37,7],[38,2,38,7],[39,2,39,7]]}
[null,"Info sul registro fatture"]
[]
[]
[null,"Il registro fatture è studiato per mantenere una cronologia di clienti, fatture e dettagli della fattura, in modo da poter archiviare più fatture senza creare più file. È anche possibile usare il registro delle fatture per analizzare i dati fatturati in precedenza. Ad esempio, è possibile visualizzare tutte le fatture per un cliente, un progetto specifico oppure per l'ultimo mese, l'ultimo anno e altro."]
[null,"Prima di iniziare, osservare i dati di esempio forniti. Nel foglio Fattura, selezionando la cella a destra di N. fattura (cella L8) viene visualizzato un elenco a discesa. Selezionare la freccia dell'elenco a discesa e quindi scegliere una fattura di esempio. Tutte le informazioni della fattura cambiano automaticamente a seconda della fattura selezionata. Passare ora ai fogli Clienti, Fatture - Principale e Dettagli fattura. Ognuno di questi fogli fornisce informazioni relative alla fattura e le eventuali modifiche apportate saranno aggiornate automaticamente. "]
[null,"Come iniziare"]
[null,"Modificare il foglio Fattura in modo che rifletta le informazioni della società seguendo questi passaggi:"]
[null,"1.","Passare al foglio Fattura e, nella scheda Revisione, nel gruppo Proteggi seleziona Rimuovi protezione foglio. "]
[null,null,"Nota: il foglio Fattura è protetto per evitare modifiche non intenzionali poiché, come indicato in precedenza, la maggior parte dei dati in questo foglio viene ricavata da tutti gli altri fogli nella cartella di lavoro. "]
[null,"2.","Personalizzare l'intestazione della fattura inserendo nome della società, indirizzo, città, CAP, indirizzo e-mail, sito Web e così via. Nella parte inferiore della fattura (riga 43), modificare le istruzioni di pagamento. "]
[null,null,"Importante Non modificare le informazioni di fatturazione o della fattura. Tutte queste celle hanno delle formule che faranno aggiornare automaticamente la fattura, come indicato nella sezione Info sul registro fatture.  "]
[null,"3.","(Opzionale) Modificare i colori nella cartella di lavoro: Nella scheda Layout di pagina, nel gruppo Temi selezionare Colori e scegliere un altro set di colori del tema dalla raccolta di colori. "]
[null,"Suggerimento: creare un set di colori del tema che richiami quello del marchio aziendale. Per farlo, nella scheda Layout di pagina, nel gruppo Temi selezionare Colori, quindi  Personalizza colori. Per altre informazioni sulla creazione di un set di colori personalizzato, consultare il seguente argomento della Guida: "]
[null,null,"Personalizzare un tema del documento."]
[null,"4.","Dopo aver apportato le modifiche desiderate, tornare al foglio Fattura e, nella scheda Revisione, nel gruppo Revisioni selezionare Proteggi foglio e quindi OK. Quando il foglio Fattura è protetto, l'unica cella che è possibile selezionare è quella con l'elenco a discesa N. fattura."]
[null,"Come creare una fattura"]
[null,"1.","Nel foglio Clienti, immettere le informazioni dei clienti come il nome della società e l'indirizzo. N. società è una voce importante perché fornisce un identificatore univoco per ogni società che viene utilizzato nel registro delle fatture. Basta aggiungere una società solo una volta. Per le fatture successive della stessa società, questo passaggio può essere ignorato. "]
[null,null,"Nota: se si assegna lo stesso numero a più società o si immette più volte lo stesso nome della società, le voci diventeranno rosse per avvisare della duplicazione. "]
[null,"2.","Nel foglio Fatture - Principale, immettere le informazioni principali della fattura come N. fattura, Data fattura e Descrizione del progetto. Come per N. società, anche N. fattura è una voce importante perché fornisce un identificatore univoco per ogni fattura e viene utilizzato nel registro delle fatture. Un'altra voce importante è Società. Quando si seleziona una società nell'elenco a discesa fornito, si associa la fattura a tale società. Pertanto, quando si seleziona un N. fattura nel foglio Fattura, le informazioni della relativa società (come nome e indirizzo) vengono inserite automaticamente nella fattura."]
[null,null,"Nota: se si assegna lo stesso numero a più fatture, le voci diventeranno rosse per avvisare della duplicazione. "]
[null,"3.","Nel foglio Dettagli fattura, immettere i dettagli della fattura come Descrizione articolo, N. articolo, Qtà e Prezzo unitario. L'elenco a discesa N. fattura fornisce una lista di fatture inserite nel foglio Fatture - Principale per agevolare l'immissione di dati. Come per N. società nel passaggio precedente, N. fattura associa i dettagli dell'articolo a una fattura specifica. Quando si seleziona un N. fattura nel foglio Fattura dall'elenco a discesa N. fattura, i relativi dettagli degli articoli saranno visualizzati nella fattura."]
[null,null,"Nota: per ogni fattura sono disponibili massimo 25 articoli dettagliati. Se se ne inseriscono di più, tutte le voci corrispondenti diventeranno rosse per segnalare questo limite. Se sono presenti più di 25 articoli per una fattura, sarà necessario creare una seconda fattura. "]
[null,"Come aggiungere ulteriori clienti, fatture e dettagli?"]
[null,"I dati di Clienti, Fatture e Dettagli fattura sono archiviati nelle tabelle di Excel. Quando si aggiunge una nuova riga a una tabella, la nuova riga sarà formattata automaticamente ed eventuali calcoli saranno copiati. Per aggiungere nuove righe di tabella, eseguire una delle operazioni seguenti:"]
[null,"● ","Se la tabella non include una riga Totale, iniziare a digitare sotto la tabella perché si espanda automaticamente quando si preme INVIO o TAB."]
[null,"● ","Posizionare il puntatore di cella nell'ultima cella sopra la riga Totale, ad esempio nella tabella Fatture nella cella Note per l'ultima fattura, e quindi premere TAB."]
[null,"● ","Nella scheda Home, nel gruppo Celle selezionare Inserisci, quindi Righe tabella sopra o Riga tabella sotto. "]
[null,"● ","Nell'angolo in basso a destra della tabella posizionare il mouse sul quadratino di ridimensionamento della tabella e trascinarlo verso il basso per aumentare il numero di righe di tabella disponibili."]
[null,"Come analizzare i dettagli della fattura"]
[null,"Come indicato nella sezione Info sul registro fatture, dopo aver immesso diverse fatture, è possibile visualizzare un elenco di tutte le fatture per un determinato cliente, un progetto, un intervallo di date e molto altro. Questo tipo di analisi viene realizzato tramite un filtro che consente di restringere rapidamente un elenco di dati. Per accedere a un filtro nelle tabelle Clienti, Fatture o Dettagli fattura, selezionare una freccia a discesa accanto al nome del campo di una tabella. Viene visualizzato un riquadro con varie opzioni di filtro. Ecco alcuni esempi di filtri per iniziare:"]
[null,"● ","Per visualizzare l'importo totale fatturato a un cliente specifico: nel foglio Fatture - Principale, a destra del campo N. società, selezionare la freccia a discesa. Nel riquadro Filtro, fare clic su Seleziona tutto per deselezionare tutte le società, selezionare la società desiderata e quindi OK. "]
[null,null,"Suggerimento: nel riquadro Filtro è anche possibile digitare il nome del cliente nella casella di testo Cerca per eseguire una ricerca rapida nell'elenco disponibile."]
[null,"● ","Per visualizzare tutte le fatture per cliente/progetto specifico: iniziare filtrando il cliente desiderato seguendo i passaggi forniti nell'esempio precedente. Quindi, a destra di N. progetto, selezionare la freccia a discesa. Nel riquadro Filtro, selezionare il progetto desiderato (o i progetti desiderati) e quindi selezionare OK. "]
[null,"● ","Per visualizzare tutte le fatture relative al mese precedente: nel foglio Fatture - Principale, a destra del campo Data fattura, selezionare la freccia a discesa, scegliere Filtri per date e quindi selezionare Ultimo mese."]
[null,"● ","Per visualizzare tutti i clienti con lo stesso prefisso: nel foglio Clienti, a destra del campo Telefono, selezionare la freccia a discesa. Nel riquadro Filtro, fare clic nella casella di testo Cerca, digitare il prefisso e quindi selezionare OK. "]
[null,"Suggerimenti sui filtri"]
[null,"● ","Se una tabella ha una riga Totale, ad esempio Clienti e Fatture, i totali calcolati rifletteranno solo l'elenco filtrato."]
[null,"● ","Utilizzare più filtri in un unico campo o tra più campi per perfezionare i risultati."]
[null,"● ","Per deselezionare un singolo filtro, selezionare la freccia a discesa per una colonna filtrata in precedenza e quindi selezionare Cancella filtro da <nome campo>."]
[null,"● ","Per deselezionare più filtri contemporaneamente, posizionare il puntatore di cella nella tabella, nella scheda Home, nel gruppo Modifica selezionare Ordina e filtra, quindi selezionare Cancella."]